fUSD/lending_fUSD_20241020
["ID","MTS","AMOUNT","RATE_DAILY","PERIOD"]
[340509700,1729393847310,-150.0,0.0001993,2]
[340509701,1729393847320,-207.0,0.0001996,2]
[340509702,1729393847331,-210.0,0.0001996,2]
[340509703,1729393847341,-22730.45824973,0.0002,2]
[340509704,1729393847556,-1000.0,0.000109,2]
[340509705,1729393847566,-939.82140896,0.0002,2]
[340509889,1729394039562,1538.7009,0.00027,60]
[340510086,1729394225038,250.0,0.0001,2]
[340510609,1729394728493,-151.65360541,0.00010859,2]
[340510610,1729394728517,-7500.0,0.000109,2]
[340510611,1729394728539,-175.71,0.00010959,2]
[340510612,1729394728564,-155.43,0.00010959,2]
[340510613,1729394728588,-300.0,0.00010998,2]
[340510614,1729394728610,-1104.27358122,0.00010999,2]
[340510615,1729394728632,-150.0,0.00011,2]
[340510616,1729394728664,-24312.93281337,0.00011,2]
[340510713,1729394827266,-924.13408065,0.0001078,2]
[340510717,1729394834116,-120.96882731,0.0001078,2]
[340510718,1729394834137,-1059.6637826,0.0001078,2]
[340510719,1729394834157,-381.98303924,0.00010859,2]
[340510729,1729394851506,426.0,0.00027,60]
[340510882,1729395031689,-277.09606604,0.00010759,2]
[340510883,1729395031821,-1352.07943396,0.00010759,2]
[340510884,1729395031831,-461.15329349,0.000108,2]
[340510885,1729395031843,-1241.85010801,0.000108,2]
[340510886,1729395031852,-3318.87841625,0.000109,2]
[340510887,1729395031938,-1244.37019934,0.000109,2]
[340510900,1729395038250,-599.2800009,0.000109,2]
[340510901,1729395038374,-2145.35656497,0.000109,2]
[340510902,1729395038384,-186.9,0.00010959,2]
[340510903,1729395038393,-637.76,0.00010959,2]
[340510904,1729395038402,-150.0,0.00010998,2]
[340510905,1729395038411,-500.0,0.00010999,2]
[340510906,1729395038422,-500.0,0.00010999,2]
[340510907,1729395038431,-340.12915749,0.00010999,2]
[340510908,1729395038440,-375.53035691,0.00010999,2]
[340510909,1729395038449,-107.76723611,0.00010999,2]
[340510910,1729395038461,-392.23276389,0.00010999,2]
[340510911,1729395038470,-348.50329131,0.00010999,2]
[340510912,1729395038478,-500.0,0.00010999,2]
[340510913,1729395038487,-500.0,0.00010999,2]
[340510914,1729395038496,-500.0,0.00010999,2]
[340510915,1729395038505,-500.0,0.00010999,2]
[340510916,1729395038521,-500.0,0.00010999,2]
[340510917,1729395038537,-500.0,0.00010999,2]
[340510918,1729395038553,-500.0,0.00010999,2]
[340510919,1729395038569,-500.0,0.00010999,2]
[340510920,1729395038586,-500.0,0.00010999,2]
[340510921,1729395038602,-500.0,0.00010999,2]
[340510922,1729395038618,-500.0,0.00010999,2]
[340510923,1729395038634,-500.0,0.00010999,2]
[340510924,1729395038652,-500.0,0.00010999,2]
[340510925,1729395038666,-500.0,0.00010999,2]
[340510926,1729395038680,-500.0,0.00010999,2]
[340510927,1729395038697,-52793.1130248,0.00011,2]
[340510928,1729395039258,-1508.57123451,0.00011,2]
[340510929,1729395039276,-34359.65177312,0.00011,2]
[340510930,1729395039465,-5510.06098439,0.00011,2]
[340510931,1729395039483,-1178.84607531,0.00011,2]
[340510932,1729395039664,-66614.9090643,0.00011,2]
[340510933,1729395039685,-2170.37864793,0.00011,2]
[340510934,1729395039701,-7458.8746938,0.00011,2]
[340510935,1729395039718,-5075.75470507,0.00011,2]
[340510936,1729395039735,-11359.69896996,0.00011,2]
[340510937,1729395039821,-1526.97,0.00011,2]
[340510938,1729395039837,-10432.9189482,0.00011,2]
[340510939,1729395039854,-1406.98951982,0.00011,2]
[340510953,1729395042580,-2470.72892504,0.00011,2]
[340510958,1729395042719,-41536.23399519,0.00011,2]
[340510959,1729395042729,-150.0,0.00011,2]
[340510960,1729395042739,-46382.58638848,0.00011,2]
[340510961,1729395042750,-150.0,0.000119,2]
[340510962,1729395042759,-967.486,0.000119,2]
[340510963,1729395042769,-300.0,0.00012,2]
[340510964,1729395042778,-600.0,0.00012404,2]
[340510965,1729395042789,-600.0,0.00012404,2]
[340510966,1729395042798,-600.0,0.00012404,2]
[340510967,1729395042808,-600.0,0.00012404,2]
[340510968,1729395042818,-600.0,0.00012404,2]
[340510969,1729395042827,-600.0,0.00012404,2]
[340510970,1729395042837,-600.0,0.00012404,2]
[340510971,1729395042846,-600.0,0.00012404,2]
[340510972,1729395042856,-600.0,0.00012404,2]
[340510973,1729395042865,-614.82857773,0.00012404,2]
[340510974,1729395042874,-7307.88518138,0.00012456,2]
[340510975,1729395042884,-8481.5863341,0.000138,2]
[340510976,1729395042895,-498.72094454,0.000138,2]
[340510977,1729395042905,-350.0,0.00014,2]
[340510978,1729395042914,-981.18905446,0.00014011,2]
[340510979,1729395045728,-6326.69612692,0.00014011,2]
[340510980,1729395045737,-382.95,0.00014354,2]
[340510981,1729395045748,-150.0,0.000149,2]
[340510982,1729395045757,-8980.30727864,0.0001499,2]
[340510983,1729395045767,-2632.0,0.00015,2]
[340510984,1729395045777,-499.99,0.000152,2]
[340510985,1729395045787,-410.38413133,0.00015313,2]
[340510986,1729395045796,-410.38413133,0.00015497,2]
[340510987,1729395045806,-7307.88518138,0.00015567,2]
[340510988,1729395045816,-410.38413133,0.00015728,2]
[340510989,1729395045826,-8980.30727864,0.0001589,2]
[340510990,1729395045835,-8511.69212628,0.000159,2]
[340510991,1729395045844,-400.0,0.00016,2]
[340510992,1729395045855,-500.0,0.0001601,2]
[340510993,1729395045864,-200.0,0.00016025,2]
[340510994,1729395045874,-410.38413133,0.00016032,2]
[340510995,1729395045883,-232.11,0.00016041,2]
[340510996,1729395045893,-410.38413133,0.00016247,2]
[340510997,1729395045902,-161.8,0.00016438,2]
[340510998,1729395045911,-150.0,0.00016438,2]
[340510999,1729395045920,-8980.30727864,0.00016441,2]
[340511000,1729395045931,-23900.0,0.00016451,2]
[340511001,1729395045940,-410.38413133,0.00016548,2]
[340511002,1729395045950,-382.95,0.00016618,2]
[340511003,1729395045959,-436.71,0.00016672,2]
[340511004,1729395045968,-250.0,0.00016688,2]
[340511005,1729395045978,-154.75,0.00016712,2]
[340511006,1729395045987,-410.38413133,0.00016729,2]
[340511007,1729395045997,-500.0,0.0001678,2]
[340511008,1729395046007,-900.0,0.0001678,2]
[340511009,1729395046017,-3300.0,0.0001678,2]
[340511011,1729395046027,-200.0,0.00016808,2]
[340511012,1729395046037,-1000.0,0.00016861,2]
[340511013,1729395046046,-150.0,0.00016871,2]
[340511014,1729395046055,-8980.30727864,0.00016886,2]
[340511015,1729395046065,-4062.91,0.00016896,2]
[340511016,1729395046074,-11470.07,0.00016922,2]
[340511017,1729395046083,-250.0,0.00017022,2]
[340511018,1729395046092,-8980.30727864,0.00017112,2]
[340511019,1729395046102,-7307.88518138,0.00017122,2]
[340511020,1729395046112,-410.38413133,0.0001717,2]
[340511021,1729395046121,-150.0,0.00017304,2]
[340511022,1729395046131,-410.38413133,0.00017317,2]
[340511023,1729395046140,-171.93,0.0001752,2]
[340511024,1729395046149,-176.364,0.00017592,2]
[340511025,1729395046159,-1263.704,0.00017592,2]
[340511026,1729395046168,-410.38413133,0.00017667,2]
[340511027,1729395046178,-150.0,0.00017736,2]
[340511028,1729395046188,-500.0,0.00017876,2]
[340511029,1729395046197,-900.0,0.00017876,2]
[340511030,1729395046207,-3300.0,0.00017876,2]
[340511031,1729395046216,-410.38413133,0.0001788,2]
[340511032,1729395046225,-150.0,0.000179,2]
[340511033,1729395046235,-163.18,0.00017924,2]
[340511034,1729395046244,-450.0,0.00018,2]
[340511035,1729395046253,-410.38413133,0.00018116,2]
[340511036,1729395046262,-150.0,0.00018169,2]
[340511037,1729395046271,-367.62,0.000184,7]
[340511038,1729395046281,-410.38413133,0.00018452,2]
[340511039,1729395046290,-150.0,0.00018601,2]
[340511040,1729395046300,-8980.30727864,0.00018668,3]
[340511041,1729395046311,-500.0,0.00018677,2]
[340511042,1729395046321,-261.94111579,0.00018677,2]
[340511043,1729395046331,-500.0,0.00018677,2]
[340511044,1729395046344,-155.68403995,0.00018677,2]
[340511045,1729395046355,-7307.88518138,0.00018678,2]
[340511046,1729395046365,-410.38413133,0.00018755,2]
[340511047,1729395046375,-382.95,0.00018882,2]
[340511048,1729395046385,-410.38413133,0.00018925,2]
[340511049,1729395046395,-1000.0,0.00018969,2]
[340511050,1729395046405,-1100.0,0.00018972,2]
[340511051,1729395046416,-900.0,0.00018972,2]
[340511052,1729395046426,-3300.0,0.00018972,2]
[340511053,1729395046436,-150.0,0.00019034,2]
[340511054,1729395046445,-410.38413133,0.00019281,2]
[340511055,1729395046455,-150.0,0.00019466,2]
[340511056,1729395046464,-1019.07234653,0.000196,2]
[340511057,1729395046474,-1105.34123554,0.000196,2]
[340511058,1729395046483,-410.38413133,0.00019633,2]
[340511059,1729395046493,-1500.0,0.00019816,2]
[340511060,1729395046502,-8980.30727864,0.00019889,3]
[340511061,1729395046512,-703.43273443,0.0001989,3]
[340511062,1729395046524,-7614.48000001,0.0001989,3]
[340511063,1729395046536,-2490.96489737,0.0001989,3]
[340511064,1729395046547,-25112.35148279,0.0001989,3]
[340511065,1729395046556,-200.46658299,0.0001989,2]
[340511066,1729395046566,-150.0,0.00019899,2]
[340511067,1729395046575,-3804.98251409,0.00019899,2]
[340511068,1729395046584,-5054.98284073,0.000199,2]
[340511069,1729395046685,-1363.81406113,0.000199,2]
[340511075,1729396036102,-150.0,0.00011,2]
[340511076,1729396036124,-160.77206183,0.0001269,2]
[340511077,1729396036145,-150.0,0.0001279,2]
[340511078,1729396036295,-196.57825321,0.00015662,2]
[340511079,1729396036316,-161.8,0.00016438,2]
[340511080,1729396036337,-204.30481137,0.00016497,2]
[340511081,1729396036368,-271.25605675,0.00016497,2]
[340511082,1729396042507,-342.88944438,0.00016497,2]
[340511083,1729396047939,250.0,0.0001,2]
[340511087,1729396231741,-183.94,0.00010959,2]
[340511088,1729396231752,-150.0,0.00011,2]
[340511089,1729396231762,-300.0,0.00012,2]
[340511090,1729396231772,-350.0,0.00014,2]
[340511091,1729396231781,-883.0,0.00015,2]
[340511092,1729396231791,-262.3818492,0.0001592,2]
[340511093,1729396231803,-422.8827618,0.0001592,2]
[340511094,1729396231812,-400.0,0.00016,2]
[340511095,1729396231822,-748.99681207,0.0001658,2]
[340511096,1729396231833,-3281.11815459,0.0001658,2]
[340511097,1729396231845,-277.62159607,0.0001658,2]
[340511098,1729396231906,-986.37026485,0.0001658,2]
[340511099,1729396231918,-821.59857242,0.0001658,2]
[340511100,1729396231928,-500.0,0.0001678,2]
[340511101,1729396231937,-700.0,0.0001678,2]
[340511102,1729396231947,-2500.0,0.0001678,2]
[340511103,1729396231956,-325.5,0.00017371,2]
[340511104,1729396231965,-700.0,0.00017876,2]
[340511105,1729396231975,-1817.20711013,0.00017876,2]
[340511106,1729396231987,-682.49820459,0.00017876,2]
[340511107,1729396238113,-0.29468528,0.00017876,2]
[340511108,1729396238122,-450.0,0.00018,2]
[340511109,1729396238132,-499.99,0.000184,2]
[340511110,1729396238141,-167.33,0.000184,7]
[340511111,1729396238151,-700.0,0.00018972,2]
[340511112,1729396238160,-2500.0,0.00018972,2]
[340511113,1729396238170,-500.0,0.00018972,2]
[340511114,1729396238179,-194.62958872,0.00019003,2]
[340511115,1729396238191,-305.37041128,0.00019003,2]
[340511116,1729396238202,-1000.0,0.00019023,2]
[340511117,1729396238211,-150.29,0.00019034,2]
[340511118,1729396238224,-250.0,0.00019075,2]
[340511119,1729396238234,-200.0,0.00019108,2]
[340511120,1729396238243,-327.53,0.00019203,2]
[340511121,1729396238252,-156.53,0.00019297,2]
[340511122,1729396238262,-250.0,0.00019435,2]
[340511123,1729396238271,-150.0,0.00019485,2]
[340511124,1729396238280,-23900.0,0.00019486,2]
[340511125,1729396238289,-410.38413133,0.00019488,2]
[340511126,1729396238300,-325.5,0.00019635,2]
[340511127,1729396238309,-248.2771,0.00019898,2]
[340511128,1729396238319,-1047.786,0.00019899,2]
[340511129,1729396238329,-638.831892,0.000199,2]
[340511130,1729396238338,-152.340012,0.000199,2]
[340511131,1729396238347,-151.659175,0.000199,2]
[340511132,1729396238357,-159.441348,0.000199,2]
[340511133,1729396238366,-2000.0,0.000199,2]
[340511134,1729396238375,-200.0,0.000199,2]
[340511135,1729396238384,-200.0,0.000199,2]
[340511136,1729396238394,-250.19810506,0.000199,2]
[340511137,1729396238403,-2000.0,0.000199,2]
[340511138,1729396238412,-200.0,0.000199,2]
[340511139,1729396238421,-2000.0,0.000199,2]
[340511140,1729396238431,-200.0,0.000199,2]
[340511141,1729396238440,-500.0,0.00019909,2]
[340511142,1729396238450,-150.29,0.00019912,2]
[340511143,1729396238463,-161.03463149,0.0001994,10]
[340511144,1729396238473,-5608.9347,0.00019954,2]
[340511145,1729396238482,-188.9485385,0.00019998,2]
[340511146,1729396238492,-7869.6884872,0.00019998,2]
[340511147,1729396238501,-20975.48487444,0.00019998,2]
[340511178,1729396239727,-151.21137976,0.00019961,2]
[340511179,1729396239736,-5875.33862024,0.00019998,2]
[340511180,1729396239845,-328.68620246,0.00019998,2]
[340511181,1729396239971,-527.97999999,0.00019998,2]
[340511182,1729396239983,-23754.71506977,0.00019998,2]
[340511183,1729396239993,-494.58179381,0.00019999,2]
[340511184,1729396240003,-16329.72034131,0.0002,2]
[340511185,1729396240013,-2743.047673,0.0002,2]
[340511186,1729396240022,-500.0,0.0002,2]
[340511187,1729396240031,-733.1850358,0.0002004,2]
[340511188,1729396240040,-2500.0,0.00020068,2]
[340511189,1729396240050,-1000.0,0.00020068,2]
[340511190,1729396240060,-200.0,0.00020099,2]
[340511191,1729396240069,-200.0,0.00020099,2]
[340511193,1729396240078,-2000.0,0.00020099,2]
[340511195,1729396240088,-200.0,0.00020099,2]
[340511196,1729396240098,-2000.0,0.00020099,2]
[340511197,1729396240108,-200.0,0.00020099,2]
[340511198,1729396240118,-200.0,0.000203,2]
[340511199,1729396240128,-200.0,0.000203,2]
[340511200,1729396240138,-200.0,0.000203,2]
[340511201,1729396240147,-2000.0,0.000203,2]
[340511202,1729396240158,-200.0,0.000203,2]
[340511203,1729396240167,-207.0,0.0002038,2]
[340511204,1729396240177,-210.0,0.0002038,2]
[340511205,1729396240186,-924.0,0.00020493,2]
[340511206,1729396240197,-200.0,0.00020503,2]
[340511207,1729396240207,-200.0,0.00020503,2]
[340511208,1729396240217,-200.0,0.00020503,2]
[340511209,1729396240229,-2000.0,0.00020503,2]
[340511210,1729396240238,-200.0,0.00020503,2]
[340511211,1729396240248,-272.56,0.00020548,2]
[340511212,1729396240258,-175.15,0.00020633,2]
[340511213,1729396240267,-200.0,0.00020708,2]
[340511214,1729396240277,-200.0,0.00020708,2]
[340511215,1729396240287,-200.0,0.00020708,2]
[340511216,1729396240296,-354.41704112,0.00020708,2]
[340511217,1729396240305,-200.0,0.00020708,2]
[340511218,1729396240316,-150.29,0.0002079,2]
[340511219,1729396240326,-207.0,0.000208,2]
[340511220,1729396240336,-210.0,0.000208,2]
[340511221,1729396240347,-1651.0,0.00021,2]
[340511222,1729396240359,-1000.0,0.00021164,2]
[340511223,1729396240368,-700.0,0.00021164,2]
[340511224,1729396240378,-500.0,0.00021164,2]
[340511225,1729396240387,-207.0,0.0002122,2]
[340511226,1729396240396,-210.0,0.0002122,2]
[340511227,1729396240406,-161.8,0.00021233,2]
[340511228,1729396240415,-1000.0,0.000214,2]
[340511229,1729396240425,-2923.15407257,0.00021478,2]
[340511230,1729396240434,-924.0,0.00021518,2]
[340511231,1729396240444,-500.0,0.00021578,2]
[340511232,1729396240453,-372.05592126,0.00021578,2]
[340511233,1729396240462,-16806.94405946,0.00021579,2]
[340511234,1729396240482,-540.75747607,0.00021579,2]
[340511235,1729396240493,-1982.583,0.00021579,2]
[340511237,1729396245718,-500.988516,0.0002,2]
[340511238,1729396245728,-13858.59616447,0.00021579,2]
[340511239,1729396245738,-207.0,0.0002164,2]
[340511240,1729396245747,-210.0,0.0002164,2]
[340511241,1729396245757,-150.29,0.00021668,2]
[340511242,1729396245766,-962.4264,0.00021679,2]
[340511243,1729396245776,-151.56,0.00021726,2]
[340511244,1729396245786,-150.0,0.00021726,2]
[340511245,1729396245795,-150.0,0.00021726,2]
[340511246,1729396245806,-150.0,0.00021726,2]
[340511247,1729396245815,-150.0,0.00021726,2]
[340511248,1729396245825,-150.0,0.00021726,2]
[340511249,1729396245834,-150.0,0.00021726,2]
[340511250,1729396245844,-150.0,0.00021726,2]
[340511251,1729396245853,-150.0,0.00021726,2]
[340511252,1729396245863,-150.0,0.00021726,2]
[340511253,1729396245873,-150.0,0.00021726,2]
[340511254,1729396245884,-150.0,0.00021726,2]
[340511255,1729396245895,-150.0,0.00021726,2]
[340511256,1729396245905,-2923.15407255,0.00021858,2]
[340511257,1729396245914,-325.5,0.00021899,2]
[340511258,1729396245923,-500.0,0.00021917,2]
[340511259,1729396245932,-500.0,0.00021917,2]
[340511260,1729396245942,-493.0,0.00021917,2]
[340511261,1729396245951,-400.4,0.00021918,2]
[340511262,1729396245961,-247.2,0.00021918,2]
[340511263,1729396245970,-550.0,0.00022,2]
[340511264,1729396245980,-207.0,0.0002206,2]
[340511265,1729396245989,-210.0,0.0002206,2]
[340511266,1729396245998,-13939.41440386,0.000221,2]
[340511267,1729396246030,-12143.6973494,0.000221,2]
[340511268,1729396246041,-3587.7047,0.000221,2]
[340511269,1729396246052,-1550.4,0.000221,2]
[340511270,1729396246064,-1365.71594674,0.000221,2]
[340511271,1729396246074,-228.24151263,0.0002211,2]
[340511272,1729396246084,-1067.63951192,0.0002211,2]
[340511273,1729396246097,-3407.65323103,0.0002211,2]
[340511274,1729396881696,-950.0,0.000109,2]
[340511275,1729397027771,-429.0697,0.000109,2]
[340511276,1729397027792,-403.01216555,0.000109,2]
[340511277,1729397027812,-167.91813445,0.00010959,2]
[340511279,1729397126768,5503.2839318,0.0001,2]
[340511284,1729397431804,-9.85186555,0.00010959,2]
[340511285,1729397431814,-240.45,0.00011,2]
[340511286,1729397431823,-161.8,0.00016438,2]
[340511287,1729397431832,-693.504,0.00017876,2]
[340511288,1729397431841,-500.0,0.00017876,2]
[340511289,1729397431850,-1700.0,0.00017876,2]
[340511290,1729397431860,-251.10312229,0.00018062,2]
[340511291,1729397431870,-25.56687771,0.00018062,2]
[340511292,1729397431879,-150.03456977,0.000184,7]
[340511293,1729397431888,-500.0,0.00018972,2]
[340511294,1729397431898,-1700.0,0.00018972,2]
[340511295,1729397431906,-81.09855252,0.00019697,2]
[340511296,1729397431920,-518.90144748,0.00019697,2]
[340511297,1729397431930,-810.38258025,0.00019697,2]
[340511298,1729397431941,-105.32741975,0.00019697,2]
[340511299,1729397431950,-150.0,0.00019725,2]
[340511300,1729397431959,-10512.8266909,0.00019726,2]
[340511301,1729397431970,-7703.13545526,0.00019726,2]
[340511302,1729397431992,-387.17470319,0.00019726,2]
[340511303,1729397432009,-262.70659263,0.00019726,2]
[340511304,1729397432029,-449.5765657,0.00019726,2]
[340511305,1729397432041,-7148.74963332,0.00019726,2]
[340511306,1729397432053,-420.98804803,0.00019726,2]
[340511307,1729397432064,-3114.83231097,0.00019726,2]
[340511308,1729397432074,-585.16768903,0.00019726,2]
[340511309,1729397432096,-2195.73008022,0.00019726,2]
[340511310,1729397432107,-11795.98223075,0.00019726,2]
[340511311,1729397432116,-150.0,0.00019923,2]
[340511312,1729397432125,-150.29,0.00019925,2]
[340511313,1729397432135,-250.0,0.00019998,2]
[340511314,1729397432146,-150.0,0.0002,2]
[340511315,1729397432159,-250.0,0.00020019,2]
[340511316,1729397432168,-1007.87819412,0.00020025,2]
[340511317,1729397432177,-875.052,0.00020025,2]
[340511318,1729397432187,-163.76,0.00020031,2]
[340511319,1729397432196,-23900.0,0.00020034,2]
[340511320,1729397432205,-500.0,0.00020068,2]
[340511321,1729397432214,-1700.0,0.00020068,2]
[340511322,1729397432223,-900.0,0.00020068,2]
[340511323,1729397432232,-500.0,0.00020068,2]
[340511324,1729397432241,-400.0,0.00020189,2]
[340511326,1729397432250,-276.67,0.00020326,2]
[340511328,1729397432259,-3622.0,0.00020407,2]
[340511330,1729397432268,-1700.0,0.00021164,2]
[340511332,1729397432278,-900.0,0.00021164,2]
[340511334,1729397432287,-214.9509,0.00021279,2]
[340511336,1729397432296,-150.29,0.0002137,2]
[340511337,1729397432305,-4693.2889,0.00021379,2]
[340511338,1729397432314,-159.9109,0.00021379,2]
[340511339,1729397432324,-1000.0,0.00021479,2]
[340511340,1729397432334,-8072.07169031,0.00021479,2]
[340511341,1729397432350,-1396.35356278,0.00021479,2]
[340511342,1729397432366,-19857.90970279,0.00021479,2]
[340511343,1729397432384,-1440.43885463,0.00021479,2]
[340511349,1729397438051,-272.317,0.00021049,2]
[340511350,1729397438060,-43712.65168949,0.00021479,2]
[340511351,1729397438070,-6691.3791,0.00021479,2]
[340511352,1729397438080,-333.66,0.00021918,2]
[340511353,1729397438090,-206.0,0.00021918,2]
[340511354,1729397438099,-2507.0153,0.00022069,2]
[340511355,1729397438110,-1009.0,0.000221,2]
[340511356,1729397438119,-200.0,0.0002211,2]
[340511357,1729397438130,-237.1697789,0.0002211,2]
[340511358,1729397438139,-238.92537863,0.0002211,2]
[340511359,1729397438153,-150.0,0.0002211,2]
[340511360,1729397438163,-150.0,0.0002211,2]
[340511361,1729397438172,-150.0,0.0002211,2]
[340511362,1729397438181,-150.0,0.0002211,2]
[340511363,1729397438191,-150.0,0.0002211,2]
[340511364,1729397438200,-150.0,0.0002211,2]
[340511365,1729397438210,-150.0,0.0002211,2]
[340511366,1729397438219,-150.0,0.0002211,2]
[340511367,1729397438229,-150.0,0.0002211,2]
[340511368,1729397438239,-150.0,0.0002211,2]
[340511369,1729397438248,-150.0,0.0002211,2]
[340511370,1729397438257,-150.0,0.0002211,2]
[340511371,1729397438266,-150.0,0.0002211,2]
[340511372,1729397438275,-150.0,0.0002211,2]
[340511373,1729397438284,-2652.66087698,0.0002211,2]
[340511374,1729397438310,-2002.8491198,0.0002211,2]
[340511375,1729397438324,-3852.15068407,0.0002211,2]
[340511376,1729397438334,-6120.84270489,0.00022115,2]
[340511378,1729397439843,-544.16920256,0.00022015,2]
[340511379,1729397439854,-168.91619744,0.00022015,2]
[340511380,1729397439864,-494.58179381,0.00022109,2]
[340511381,1729397439873,-422.8487154,0.00022115,2]
[340511382,1729397440002,-1245.26990852,0.00022115,2]
[340511383,1729397440014,-18610.06749229,0.00022115,2]
[340511384,1729397440023,-2806.4,0.00022115,2]
[340511385,1729397440033,-610.9875299,0.00022116,2]
[340511386,1729397440042,-27645.80506369,0.00022116,2]
[340511387,1729397440095,-29.13471289,0.00022116,2]
[340511389,1729397442992,-426.29565446,0.00022116,2]
[340511400,1729397444451,-1118.02371836,0.00022116,2]
[340511401,1729397444461,-2710.0985019,0.00022116,2]
[340511402,1729397444470,-600.0,0.0002216,2]
[340511403,1729397444479,-11293.63452651,0.000222,2]
[340511404,1729397444505,-10797.29872224,0.000222,2]
[340511405,1729397444540,-361.01292754,0.000222,2]
[340511406,1729397444564,-330.5,0.000222,2]
[340511407,1729397444575,-5886.12851612,0.000222,2]
[340511408,1729397445719,-459.20694377,0.000222,2]
[340511409,1729397445930,-76.05508144,0.000222,2]
[340511410,1729397445939,-900.0,0.0002226,2]
[340511411,1729397445949,-500.0,0.0002226,2]
[340511412,1729397445958,-500.0,0.0002226,2]
[340511413,1729397445967,-161.36,0.00022311,2]
[340511414,1729397445976,-200.0,0.00022331,2]
[340511415,1729397445985,-237.1697789,0.00022357,2]
[340511416,1729397445994,-238.92537863,0.00022357,2]
[340511417,1729397446003,-150.0,0.00022455,2]
[340511418,1729397446013,-207.0,0.0002248,2]
[340511419,1729397446022,-210.0,0.0002248,2]
[340511420,1729397446032,-200.0,0.00022554,2]
[340511421,1729397446041,-276.67,0.0002259,2]
[340511422,1729397446051,-924.0,0.00022594,2]
[340511423,1729397446060,-237.1697789,0.00022604,2]
[340511424,1729397446069,-238.92537863,0.00022604,2]
[340511425,1729397446078,-400.0,0.00022713,2]
[340511426,1729397446087,-150.0,0.00022799,2]
[340511428,1729397446097,-150.29,0.00022815,2]
[340511430,1729397446106,-237.1697789,0.00022851,2]
[340511440,1729397446223,-238.92537863,0.00022851,2]
[340511441,1729397446235,-207.0,0.000229,2]
[340511442,1729397446244,-210.0,0.000229,2]
[340511443,1729397446253,-280.0,0.00023,2]
[340511444,1729397446262,-201.55123735,0.00023,2]
[340511445,1729397446271,-237.1697789,0.00023098,2]
[340511446,1729397446280,-238.92537863,0.00023098,2]
[340511447,1729397446290,-150.0,0.00023144,2]
[340511448,1729397446299,-150.0,0.00023275,2]
[340511449,1729397446308,-3302.0,0.000233,2]
[340511450,1729397446317,-250.0,0.000233,2]
[340511451,1729397446326,-169.34592228,0.000233,2]
[340511452,1729397446335,-538.74816679,0.000233,2]
[340511453,1729397446344,-1433.0,0.000233,2]
[340511454,1729397446354,-207.0,0.0002332,2]
[340511455,1729397446363,-210.0,0.0002332,2]
[340511456,1729397446372,-2849.09459745,0.00023335,2]
[340511457,1729397446382,-237.1697789,0.00023346,4]
[340511458,1729397446393,-238.92537863,0.00023346,4]
[340511459,1729397446404,-8222.93196598,0.00023346,4]
[340511460,1729397446414,-900.0,0.00023356,2]
[340511461,1729397446424,-1700.0,0.00023356,2]
[340511462,1729397446434,-150.0,0.00023488,4]
[340511463,1729397446443,-150.0,0.00023549,4]
[340511464,1729397446453,-237.1697789,0.00023593,4]
[340511465,1729397446462,-238.92537863,0.00023593,4]
[340511466,1729397446471,-924.0,0.00023724,2]
[340511467,1729397446481,-2849.09459745,0.00023726,2]
[340511468,1729397446490,-207.0,0.0002374,2]
[340511469,1729397446499,-210.0,0.0002374,2]
[340511470,1729397446509,-150.0,0.00023833,4]